fUSD/lending_fUSD_20240614
["ID","MTS","AMOUNT","RATE_DAILY","PERIOD"]
[329423355,1718329880485,-500.0,0.00025205,3]
[329423356,1718329880514,-500.0,0.00025205,3]
[329423357,1718329880530,-500.0,0.00025205,3]
[329423358,1718329880545,-508.00221009,0.00025205,3]
[329423359,1718329880556,-500.0,0.00025205,3]
[329423360,1718329880567,-500.0,0.00025205,3]
[329423361,1718329880578,-644.64865866,0.00025205,3]
[329423362,1718329880589,-500.0,0.00025205,3]
[329423363,1718329880604,-500.0,0.00025205,3]
[329423364,1718329880626,-500.0,0.00025205,3]
[329423365,1718329880642,-568.59615325,0.00025205,3]
[329423366,1718329880660,-477.51258872,0.00025205,3]
[329423367,1718329880679,-201.82333023,0.00025205,3]
[329423368,1718329880698,-449.04435081,0.00025205,3]
[329423369,1718329880710,-521.34593067,0.00025205,3]
[329423370,1718329880722,-500.0,0.00025205,3]
[329423371,1718329880734,-500.0,0.00025205,3]
[329423372,1718329880745,-500.0,0.00025205,3]
[329423373,1718329880757,-593.39418458,0.00025205,3]
[329423374,1718329880768,-348.93508901,0.00025205,3]
[329423375,1718329880800,-500.0,0.00025205,3]
[329423376,1718329880812,-500.0,0.00025205,3]
[329423377,1718329880827,-605.72353079,0.00025205,3]
[329423378,1718329880838,-500.0,0.00025205,3]
[329423379,1718329880850,-500.0,0.00025205,3]
[329423380,1718329880862,-500.0,0.00025205,3]
[329423381,1718329880881,-515.14368439,0.00025205,3]
[329423382,1718329880891,-500.0,0.00025205,3]
[329423383,1718329880919,-548.42,0.00025205,3]
[329423384,1718329880930,-591.54,0.00025205,3]
[329423385,1718329880944,-992.45,0.00025205,3]
[329423386,1718329880957,-165.43257061,0.00025205,3]
[329423387,1718329880969,-512.16396717,0.00025205,3]
[329423388,1718329880980,-500.0,0.00025205,3]
[329423389,1718329880992,-771.5,0.00025205,3]
[329423390,1718329881004,-641.72,0.00025205,3]
[329423391,1718329881015,-525.84750208,0.00025205,3]
[329423392,1718329881026,-281.69847868,0.00025205,3]
[329423393,1718329881037,-192.37816055,0.00025205,3]
[329423394,1718329881048,-500.0,0.00025205,3]
[329423395,1718329881059,-500.0,0.00025205,3]
[329423396,1718329881069,-500.0,0.00025205,3]
[329423397,1718329881080,-500.0,0.00025205,3]
[329423398,1718329881253,-500.0,0.00025205,3]
[329423399,1718329881266,-516.98278004,0.00025205,3]
[329423400,1718329881277,-500.0,0.00025205,3]
[329423401,1718329881288,-500.0,0.00025205,3]
[329423402,1718329881299,-500.0,0.00025205,3]
[329423403,1718329881310,-618.70200419,0.00025205,3]
[329423404,1718329881323,-500.0,0.00025205,3]
[329423405,1718329881335,-500.0,0.00025205,3]
[329423406,1718329881347,-500.0,0.00025205,3]
[329423407,1718329881361,-471.59166687,0.00025205,3]
[329423408,1718329881372,-612.48,0.00025205,3]
[329423409,1718329881389,-500.0,0.00025205,3]
[329423410,1718329881400,-500.0,0.00025205,3]
[329423411,1718329881413,-598.86,0.00025205,3]
[329423412,1718329881429,-1020.91,0.00025205,3]
[329423413,1718329881442,-500.0,0.00025205,3]
[329423414,1718329881455,-500.0,0.00025205,3]
[329423415,1718329881468,-500.0,0.00025205,3]
[329423416,1718329881481,-500.0,0.00025205,3]
[329423417,1718329881495,-500.0,0.00025205,3]
[329423418,1718329881508,-500.0,0.00025205,3]
[329423419,1718329881519,-500.0,0.00025205,3]
[329423420,1718329881530,-621.24,0.00025205,3]
[329423421,1718329881542,-802.16,0.00025205,3]
[329423422,1718329881565,-1025.39,0.00025205,3]
[329423423,1718329881576,-749.07,0.00025205,3]
[329423424,1718329881588,-500.0,0.00025205,3]
[329423425,1718329881601,-500.0,0.00025205,3]
[329423426,1718329881612,-500.0,0.00025205,3]
[329423427,1718329881623,-625.95,0.00025205,3]
[329423428,1718329881634,-500.0,0.00025205,3]
[329423429,1718329881644,-695.14,0.00025205,3]
[329423430,1718329881655,-500.0,0.00025205,3]
[329423431,1718329881667,-594.63,0.00025205,3]
[329423432,1718329881678,-500.0,0.00025205,3]
[329423433,1718329881699,-500.0,0.00025205,3]
[329423434,1718329881720,-510.89,0.00025205,3]
[329423435,1718329881738,-810.56,0.00025205,3]
[329423436,1718329881751,-620.16,0.00025205,3]
[329423437,1718329881761,-644.0,0.00025205,3]
[329423438,1718329881786,-500.0,0.00025205,3]
[329423439,1718329881804,-468.06885751,0.00025205,3]
[329423440,1718329881815,-500.0,0.00025205,3]
[329423441,1718329881834,-500.0,0.00025205,3]
[329423442,1718329881858,-500.0,0.00025205,3]
[329423443,1718329881880,-521.33810455,0.00025205,3]
[329423444,1718329881893,-500.0,0.00025205,3]
[329423445,1718329881909,-500.0,0.00025205,3]
[329423446,1718329881930,-500.0,0.00025205,3]
[329423447,1718329881942,-500.0,0.00025205,3]
[329423448,1718329881959,-500.0,0.00025205,3]
[329423449,1718329881982,-637.11,0.00025205,3]
[329423450,1718329882001,-500.0,0.00025205,3]
[329423451,1718329882024,-500.0,0.00025205,3]
[329423452,1718329882037,-500.0,0.00025205,3]
[329423453,1718329882056,-500.0,0.00025205,3]
[329423454,1718329882079,-500.0,0.00025205,3]
[329423455,1718329882119,-500.0,0.00025205,3]
[329423456,1718329882151,-423.77090974,0.00025205,3]
[329423457,1718329882165,-500.0,0.00025205,3]
[329423458,1718329882177,-500.0,0.00025205,3]
[329423459,1718329882189,-731.43,0.00025205,3]
[329423460,1718329882200,-500.0,0.00025205,3]
[329423461,1718329882212,-575.47244633,0.00025205,3]
[329423462,1718329882237,-500.0,0.00025205,3]
[329423463,1718329882264,-500.0,0.00025205,3]
[329423464,1718329882279,-533.52,0.00025205,3]
[329423465,1718329882304,-500.0,0.00025205,3]
[329423466,1718329882317,-546.58317077,0.00025205,3]
[329423467,1718329882349,-500.0,0.00025205,3]
[329423468,1718329882361,-500.0,0.00025205,3]
[329423469,1718329882372,-500.0,0.00025205,3]
[329423470,1718329882382,-500.0,0.00025205,3]
[329423471,1718329882394,-500.0,0.00025205,3]
[329423472,1718329882407,-599.58,0.00025205,3]
[329423473,1718329882432,-500.0,0.00025205,3]
[329423474,1718329882452,-500.0,0.00025205,3]
[329423475,1718329882464,-500.0,0.00025205,3]
[329423476,1718329882493,-500.0,0.00025205,3]
[329423477,1718329882504,-904.8,0.00025205,3]
[329423478,1718329882515,-500.0,0.00025205,3]
[329423479,1718329882525,-780.74,0.00025205,3]
[329423480,1718329882541,-500.0,0.00025205,3]
[329423481,1718329882583,-500.0,0.00025205,3]
[329423482,1718329882595,-545.02383348,0.00025205,3]
[329423483,1718329882611,-226.46845714,0.00025205,3]
[329423484,1718329882622,-615.82,0.00025205,3]
[329423485,1718329882635,-500.0,0.00025205,3]
[329423486,1718329882648,-500.0,0.00025205,3]
[329423487,1718329882664,-501.56,0.00025205,3]
[329423488,1718329882681,-185.3,0.00025205,3]
[329423489,1718329882693,-734.92,0.00025205,3]
[329423490,1718329882706,-500.0,0.00025205,3]
[329423491,1718329882716,-500.0,0.00025205,3]
[329423492,1718329882726,-500.0,0.00025205,3]
[329423493,1718329882739,-500.0,0.00025205,3]
[329423494,1718329882750,-500.0,0.00025205,3]
[329423495,1718329882763,-500.0,0.00025205,3]
[329423496,1718329882789,-500.0,0.00025205,3]
[329423497,1718329882819,-188.61625894,0.00025205,3]
[329423498,1718329882837,-500.0,0.00025205,3]
[329423499,1718329882858,-500.0,0.00025205,3]
[329423500,1718329882878,-538.29,0.00025205,3]
[329423501,1718329882888,-500.0,0.00025205,3]
[329423502,1718329882916,-500.0,0.00025205,3]
[329423503,1718329882929,-500.0,0.00025205,3]
[329423504,1718329882941,-500.0,0.00025205,3]
[329423505,1718329882958,-240.60381634,0.00025205,3]
[329423506,1718329882969,-500.0,0.00025205,3]
[329423507,1718329882984,-720.9,0.00025205,3]
[329423508,1718329883001,-739.59,0.00025205,3]
[329423509,1718329883019,-500.0,0.00025205,3]
[329423510,1718329883032,-500.0,0.00025205,3]
[329423511,1718329883044,-500.0,0.00025205,3]
[329423512,1718329883059,-500.0,0.00025205,3]
[329423513,1718329883070,-500.0,0.00025205,3]
[329423514,1718329883081,-400.2103869,0.00025205,3]
[329423515,1718329883093,-500.0,0.00025205,3]
[329423516,1718329883109,-500.0,0.00025205,3]
[329423517,1718329883129,-617.32135969,0.00025205,3]
[329423518,1718329883150,-500.0,0.00025205,3]
[329423519,1718329883172,-199.4882689,0.00025205,3]
[329423520,1718329883183,-500.0,0.00025205,3]
[329423521,1718329883208,-2312.84,0.00025205,3]
[329423522,1718329883220,-500.0,0.00025205,3]
[329423523,1718329883230,-746.33,0.00025205,3]
[329423524,1718329883241,-645.3,0.00025205,3]
[329423525,1718329883260,-500.0,0.00025205,3]
[329423526,1718329883276,-500.0,0.00025205,3]
[329423527,1718329883291,-500.0,0.00025205,3]
[329423528,1718329883303,-2546.31,0.00025205,3]
[329423529,1718329883328,-500.0,0.00025205,3]
[329423530,1718329883345,-500.0,0.00025205,3]
[329423531,1718329883357,-500.0,0.00025205,3]
[329423532,1718329883372,-500.0,0.00025205,3]
[329423533,1718329883396,-500.0,0.00025205,3]
[329423534,1718329883413,-500.0,0.00025205,3]
[329423535,1718329883426,-500.0,0.00025205,3]
[329423536,1718329883438,-706.84,0.00025205,3]
[329423537,1718329883450,-500.0,0.00025205,3]
[329423538,1718329883463,-738.38,0.00025205,3]
[329423539,1718329883482,-500.0,0.00025205,3]
[329423540,1718329883506,-500.0,0.00025205,3]
[329423541,1718329883520,-500.0,0.00025205,3]
[329423542,1718329883532,-500.0,0.00025205,3]
[329423543,1718329883544,-538.7,0.00025205,3]
[329423544,1718329883563,-500.0,0.00025205,3]
[329423545,1718329883577,-500.0,0.00025205,3]
[329423546,1718329883588,-734.23,0.00025205,3]
[329423547,1718329883600,-811.75,0.00025205,3]
[329423548,1718329883612,-5232.61,0.00025205,3]
[329423549,1718329883626,-500.0,0.00025205,3]
[329423550,1718329883638,-500.0,0.00025205,3]
[329423551,1718329883652,-1315.57,0.00025205,3]
[329423552,1718329883663,-500.0,0.00025205,3]
[329423553,1718329883683,-500.0,0.00025205,3]
[329423554,1718329883694,-914.92,0.00025205,3]
[329423555,1718329883707,-500.0,0.00025205,3]
[329423556,1718329883719,-522.61,0.00025205,3]
[329423557,1718329883730,-500.0,0.00025205,3]
[329423558,1718329883742,-738.07,0.00025205,3]
[329423559,1718329883756,-595.89,0.00025205,3]
[329423560,1718329883767,-4346.24,0.00025205,3]
[329423561,1718329883779,-305.63965222,0.00025205,3]
[329423562,1718329883791,-500.0,0.00025205,3]
[329423563,1718329883803,-500.0,0.00025205,3]
[329423564,1718329883822,-500.0,0.00025205,3]
[329423565,1718329883840,-2017.22,0.00025205,3]
[329423566,1718329883857,-698.43,0.00025205,3]
[329423567,1718329883875,-500.0,0.00025205,3]
[329423568,1718329883904,-500.0,0.00025205,3]
[329423569,1718329883916,-690.02,0.00025205,3]
[329423570,1718329883929,-500.0,0.00025205,3]
[329423571,1718329883947,-500.0,0.00025205,3]
[329423572,1718329883976,-500.0,0.00025205,3]
[329423573,1718329883988,-500.0,0.00025205,3]
[329423574,1718329884020,-713.88,0.00025205,3]
[329423575,1718329884038,-551.07,0.00025205,3]
[329423576,1718329884050,-794.24,0.00025205,3]
[329423577,1718329884061,-785.3,0.00025205,3]
[329423578,1718329884072,-1263.69,0.00025205,3]
[329423579,1718329884091,-1583.91,0.00025205,3]
[329423580,1718329884110,-562.87,0.00025205,3]
[329423581,1718329884121,-500.0,0.00025205,3]
[329423582,1718329884136,-500.0,0.00025205,3]
[329423583,1718329884151,-500.0,0.00025205,3]
[329423584,1718329884162,-528.45,0.00025205,3]
[329423585,1718329884173,-967.72,0.00025205,3]
[329423586,1718329884190,-3644.52,0.00025205,3]
[329423587,1718329884208,-1028.38,0.00025205,3]
[329423588,1718329884223,-500.0,0.00025205,3]
[329423589,1718329884239,-744.0,0.00025205,3]
[329423590,1718329884269,-500.0,0.00025205,3]
[329423591,1718329884283,-500.0,0.00025205,3]
[329423592,1718329884308,-500.0,0.00025205,3]
[329423593,1718329884327,-500.0,0.00025205,3]
[329423594,1718329884360,-519.3,0.00025205,3]
[329423595,1718329884372,-6885.52,0.00025205,3]
[329423596,1718329884399,-858.45,0.00025205,3]
[329423597,1718329884431,-3143.2,0.00025205,3]
[329423598,1718329884442,-1414.07,0.00025205,3]
[329423599,1718329884453,-544.69,0.00025205,3]
[329423600,1718329884468,-500.0,0.00025205,3]
[329423601,1718329884479,-500.0,0.00025205,3]
[329423602,1718329884497,-500.0,0.00025205,3]
[329423603,1718329884510,-19497.87,0.00025205,3]
[329423604,1718329884522,-500.0,0.00025205,3]
[329423605,1718329884533,-220.25952711,0.00025205,3]
[329423606,1718329884547,-500.0,0.00025205,3]
[329423607,1718329884577,-3507.4,0.00025205,3]
[329423608,1718329884590,-1740.38,0.00025205,3]
[329423609,1718329884604,-500.0,0.00025205,3]
[329423610,1718329884633,-725.66,0.00025205,3]
[329423611,1718329884664,-710.82,0.00025205,3]
[329423612,1718329884686,-1247.89,0.00025205,3]
[329423613,1718329884708,-1459.88,0.00025205,3]
[329423614,1718329884723,-1596.05,0.00025205,3]
[329423615,1718329884735,-500.0,0.00025205,3]
[329423616,1718329884747,-500.0,0.00025205,3]
[329423617,1718329884765,-763.24,0.00025205,3]
[329423618,1718329884780,-500.0,0.00025205,3]
[329423619,1718329884825,-500.0,0.00025205,3]
[329423620,1718329884838,-500.0,0.00025205,3]
[329423621,1718329884853,-500.0,0.00025205,3]
[329423622,1718329884866,-500.0,0.00025205,3]
[329423623,1718329884891,-500.0,0.00025205,3]
[329423624,1718329884902,-923.18,0.00025205,3]
[329423625,1718329884914,-500.0,0.00025205,3]
[329423626,1718329884927,-500.0,0.00025205,3]
[329423627,1718329884941,-500.0,0.00025205,3]
[329423628,1718329884953,-500.0,0.00025205,3]
[329423629,1718329884964,-447.6125099,0.00025205,3]
[329423630,1718329884982,-2106.23,0.00025205,3]
[329423631,1718329884999,-500.0,0.00025205,3]
[329423632,1718329885012,-500.0,0.00025205,3]
[329423633,1718329885038,-504.54,0.00025205,3]
[329423634,1718329885062,-1539.25,0.00025205,3]
[329423635,1718329885083,-500.0,0.00025205,3]
[329423636,1718329885104,-516.49,0.00025205,3]
[329423637,1718329885126,-1036.84,0.00025205,3]
[329423638,1718329885147,-8388.73,0.00025205,3]
[329423639,1718329885181,-2997.79,0.00025205,3]
[329423640,1718329885195,-500.0,0.00025205,3]
[329423641,1718329885211,-151.0,0.00025205,7]
[329423642,1718329885222,-1701.31,0.00025205,3]
[329423643,1718329885270,-500.0,0.00025205,3]
[329423644,1718329885302,-853.3,0.00025205,3]
[329423645,1718329885370,-6425.34,0.00025205,3]
[329423646,1718329885432,-713.37,0.00025205,3]
[329423647,1718329885445,-712.85,0.00025205,3]
[329423648,1718329885461,-1143.4,0.00025205,3]
[329423649,1718329885484,-500.0,0.00025205,3]
[329423650,1718329885495,-500.0,0.00025205,3]
[329423651,1718329885510,-500.0,0.00025205,3]
[329423652,1718329885544,-200.0,0.00025205,3]
[329423653,1718329885557,-14213.73,0.00025205,3]
[329423654,1718329885570,-970.67,0.00025205,3]
[329423655,1718329885581,-500.0,0.00025205,3]
[329423656,1718329885594,-500.0,0.00025205,3]
[329423657,1718329885615,-824.99,0.00025205,3]
[329423658,1718329885629,-508.77,0.00025205,3]
[329423659,1718329885655,-772.8,0.00025205,3]
[329423660,1718329885670,-500.0,0.00025205,3]
[329423661,1718329885689,-1559.88,0.00025205,3]
[329423662,1718329885702,-18236.24,0.00025205,3]
[329423663,1718329885723,-500.0,0.00025205,3]
[329423664,1718329885736,-788.77,0.00025205,3]
[329423665,1718329885772,-814.94,0.00025205,3]
[329423666,1718329885783,-500.0,0.00025205,3]
[329423667,1718329885797,-1138.87,0.00025205,3]
[329423668,1718329885813,-500.0,0.00025205,3]
[329423669,1718329885839,-500.0,0.00025205,3]
[329423670,1718329885850,-500.0,0.00025205,3]
[329423671,1718329885865,-3010.8,0.00025205,3]
[329423672,1718329885884,-500.0,0.00025205,3]
[329423673,1718329885903,-1211.77,0.00025205,3]
[329423674,1718329885923,-500.0,0.00025205,3]
[329423675,1718329885940,-954.02,0.00025205,3]
[329423676,1718329885969,-2613.92,0.00025205,3]
[329423677,1718329885982,-500.0,0.00025205,3]
[329423678,1718329885993,-1139.77,0.00025205,3]
[329423679,1718329886012,-1326.27,0.00025205,3]
[329423680,1718329886028,-500.0,0.00025205,3]
[329423681,1718329886064,-1034.21,0.00025205,3]
[329423682,1718329886086,-1703.47,0.00025205,3]
[329423683,1718329886112,-750.83,0.00025205,3]
[329423684,1718329886161,-737.6,0.00025205,3]
[329423685,1718329886172,-500.0,0.00025205,3]
[329423686,1718329886184,-2561.07,0.00025205,3]
[329423687,1718329886196,-1284.33,0.00025205,3]
[329423688,1718329886207,-500.0,0.00025205,3]
[329423689,1718329886221,-1306.03,0.00025205,3]
[329423690,1718329886232,-500.0,0.00025205,3]
[329423691,1718329886246,-511.90346102,0.00025205,3]
[329423692,1718329886258,-663.01,0.00025205,3]
[329423693,1718329886279,-500.0,0.00025205,3]
[329423694,1718329886294,-2161.7,0.00025205,3]
[329423695,1718329886305,-531.77259258,0.00025205,3]
[329423696,1718329886315,-4069.95,0.00025205,3]
[329423697,1718329886331,-1384.56,0.00025205,3]
[329423698,1718329886342,-1695.26,0.00025205,3]
[329423699,1718329886391,-500.0,0.00025205,3]
[329423700,1718329886423,-682.29,0.00025205,3]
[329423701,1718329886448,-500.0,0.00025205,3]
[329423702,1718329886480,-8569.36,0.00025205,3]
[329423703,1718329886498,-1116.19,0.00025205,3]
[329423704,1718329886513,-500.0,0.00025205,3]
[329423705,1718329886524,-500.0,0.00025205,3]
[329423706,1718329886536,-669.39,0.00025205,3]
[329423707,1718329886556,-518.86,0.00025205,3]
[329423708,1718329886574,-661.47,0.00025205,3]
[329423709,1718329886585,-500.0,0.00025205,3]
[329423710,1718329886616,-1788.93,0.00025205,3]
[329423711,1718329886631,-2545.55,0.00025205,3]
[329423712,1718329886651,-691.74,0.00025205,3]
[329423713,1718329886663,-1814.53,0.00025205,3]
[329423714,1718329886677,-500.0,0.00025205,3]
[329423715,1718329886694,-500.0,0.00025205,3]
[329423716,1718329886711,-2594.63,0.00025205,3]
[329423717,1718329886733,-509.61,0.00025205,3]
[329423718,1718329886767,-500.0,0.00025205,3]
[329423719,1718329886788,-754.17,0.00025205,3]
[329423720,1718329886802,-500.0,0.00025205,3]
[329423721,1718329886838,-527.54,0.00025205,3]
[329423722,1718329886876,-2889.87,0.00025205,3]
[329423723,1718329886890,-8645.55,0.00025205,3]
[329423724,1718329886901,-500.0,0.00025205,3]
[329423725,1718329886913,-1670.07,0.00025205,3]
[329423726,1718329886931,-1424.48,0.00025205,3]
[329423727,1718329886947,-1548.18,0.00025205,3]
[329423728,1718329886963,-1790.01,0.00025205,3]
[329423729,1718329886975,-2617.75,0.00025205,3]
[329423730,1718329886996,-500.0,0.00025205,3]
[329423731,1718329887006,-500.0,0.00025205,3]
[329423732,1718329887025,-2824.15,0.00025205,3]
[329423733,1718329887036,-500.0,0.00025205,3]
[329423734,1718329887049,-863.29,0.00025205,3]
[329423735,1718329887062,-1525.09,0.00025205,3]
[329423736,1718329887074,-1816.42,0.00025205,3]
[329423737,1718329887087,-500.0,0.00025205,3]
[329423738,1718329887124,-500.0,0.00025205,3]
[329423739,1718329887134,-500.0,0.00025205,3]
[329423740,1718329887156,-859.93,0.00025205,3]
[329423741,1718329887168,-500.0,0.00025205,3]
[329423742,1718329887183,-500.0,0.00025205,3]
[329423743,1718329887195,-500.0,0.00025205,3]
[329423744,1718329887207,-952.86,0.00025205,3]
[329423745,1718329887221,-198.25569861,0.00025379,2]
[329423746,1718329887253,-270.85234985,0.00025379,2]
[329423747,1718329887263,-2973.63809718,0.00025379,2]
[329423748,1718329887279,-332.37954084,0.00025379,2]
[329423749,1718329887302,-1596.89,0.00025478,3]
[329423750,1718329887315,-523.53,0.00025478,3]
[329423751,1718329887331,-1611.8,0.00025478,3]
[329423752,1718329887344,-1026.92,0.00025478,3]
[329423753,1718329887360,-5934.88,0.00025478,3]
[329423754,1718329887377,-1007.25,0.00025478,3]
[329423755,1718329887390,-500.0,0.00025478,3]
[329423756,1718329887401,-2123.94,0.00025478,3]
[329423757,1718329887419,-943.36,0.00025478,3]
[329423758,1718329887434,-1675.45,0.00025478,3]
[329423759,1718329887450,-870.7,0.00025478,3]
[329423760,1718329887463,-547.75,0.00025478,3]
[329423761,1718329887476,-3954.16,0.00025478,3]
[329423762,1718329887488,-1779.46,0.00025478,3]
[329423763,1718329887501,-2709.71,0.00025478,3]
[329423764,1718329887513,-3157.36,0.00025478,3]
[329423765,1718329887526,-500.0,0.00025479,3]
[329423766,1718329887538,-14.96977455,0.00025479,3]
[329423767,1718329887848,-485.03022545,0.00025479,3]
[329423768,1718329887877,-314.27432828,0.00025479,3]
[329423769,1718329887908,-600.46886528,0.00025479,3]
[329423770,1718329887922,-210.21418561,0.00025479,3]
[329423771,1718329887935,-500.0,0.00025479,3]
[329423772,1718329887957,-500.0,0.00025479,3]
[329423773,1718329887971,-500.0,0.00025479,3]
[329423774,1718329887991,-500.0,0.00025479,3]
[329423775,1718329888009,-500.0,0.00025479,3]
[329423776,1718329888023,-325.55182705,0.00025479,3]
[329423777,1718329888049,-174.44817295,0.00025479,3]
[329423778,1718329888062,-227.55971501,0.00025479,3]
[329423779,1718329888123,-208.80473274,0.00024008,2]
[329423780,1718329888137,-113.30267477,0.00025479,3]
[329423781,1718329888175,-500.0,0.00025479,3]
[329423782,1718329888189,-500.0,0.00025479,3]
[329423783,1718329888208,-500.0,0.00025479,3]
[329423784,1718329888231,-354.09146325,0.00025479,3]
[329423785,1718329888243,-354.75182753,0.00025479,3]
[329423786,1718329888264,-145.24817247,0.00025479,3]
[329423787,1718329888292,-301.82561653,0.00025479,3]
[329423788,1718329888614,-218.38930472,0.00025479,3]
[329423789,1718329888625,-338.25669526,0.00025479,3]
[329423790,1718329888638,-161.74330474,0.00025479,3]
[329423791,1718329888649,-500.0,0.00025479,3]
[329423792,1718329888666,-452.12681596,0.00025479,3]
[329423793,1718329888708,-47.87318404,0.00025479,3]
[329423794,1718329888739,-405.33941642,0.00025479,3]
[329423795,1718329888764,-358.91994855,0.00025479,3]
[329423796,1718329888788,-500.0,0.00025479,3]
[329423797,1718329888801,-548.42,0.00025479,3]
[329423798,1718329888840,-591.54,0.00025479,3]
[329423799,1718329888858,-992.45,0.00025479,3]
[329423800,1718329888877,-500.0,0.00025479,3]
[329423801,1718329888903,-771.5,0.00025479,3]
[329423802,1718329888914,-641.72,0.00025479,3]
[329423803,1718329888944,-500.0,0.00025479,3]
[329423804,1718329888968,-500.0,0.00025479,3]
[329423805,1718329888980,-500.0,0.00025479,3]
[329423806,1718329888990,-500.0,0.00025479,3]
[329423807,1718329889000,-500.0,0.00025479,3]
[329423808,1718329889011,-532.78016963,0.00025479,3]
[329423809,1718329889023,-531.3308592,0.00025479,3]
[329423810,1718329889033,-500.0,0.00025479,3]
[329423811,1718329889043,-500.0,0.00025479,3]
[329423812,1718329889060,-500.0,0.00025479,3]
[329423813,1718329889076,-292.73286402,0.00025479,3]
[329423814,1718329889087,-612.48,0.00025479,3]
[329423815,1718329889098,-522.98326226,0.00025479,3]
[329423816,1718329889111,-500.0,0.00025479,3]
[329423817,1718329889124,-598.86,0.00025479,3]
[329423818,1718329889151,-1020.91,0.00025479,3]
[329423819,1718329889180,-500.0,0.00025479,3]
[329423820,1718329889202,-500.0,0.00025479,3]
[329423821,1718329889213,-336.04956788,0.00025479,3]
[329423822,1718329889228,-500.0,0.00025479,3]
[329423823,1718329889245,-500.0,0.00025479,3]
[329423824,1718329889261,-500.0,0.00025479,3]
[329423825,1718329889281,-500.0,0.00025479,3]
[329423826,1718329889298,-621.24,0.00025479,3]
[329423827,1718329889309,-802.16,0.00025479,3]
[329423828,1718329889320,-1025.39,0.00025479,3]
[329423829,1718329889340,-749.07,0.00025479,3]
[329423830,1718329889350,-545.95830296,0.00025479,3]
[329423831,1718329889365,-500.0,0.00025479,3]
[329423832,1718329889377,-500.0,0.00025479,3]
[329423833,1718329889389,-625.95,0.00025479,3]
[329423834,1718329889400,-500.0,0.00025479,3]
[329423835,1718329889430,-695.14,0.00025479,3]
[329423836,1718329889459,-533.7545405,0.00025479,3]
[329423837,1718329889471,-594.63,0.00025479,3]
[329423838,1718329889504,-500.0,0.00025479,3]
[329423839,1718329889528,-516.02641592,0.00025479,3]
[329423840,1718329889557,-510.89,0.00025479,3]
[329423841,1718329889575,-810.56,0.00025479,3]
[329423842,1718329889588,-620.16,0.00025479,3]
[329423843,1718329889621,-644.0,0.00025479,3]
[329423844,1718329889632,-500.0,0.00025479,3]
[329423845,1718329889656,-500.0,0.00025479,3]
[329423846,1718329889680,-500.0,0.00025479,3]
[329423847,1718329889697,-198.73015084,0.00025479,3]
[329423848,1718329889717,-290.09469134,0.00025479,3]
[329423849,1718329889766,-539.95237346,0.00025479,3]
[329423850,1718329889814,-500.0,0.00025479,3]
[329423851,1718329889835,-548.23180491,0.00025479,3]
[329423852,1718329889852,-500.0,0.00025479,3]
[329423853,1718329889880,-637.11,0.00025479,3]
[329423854,1718329889893,-500.0,0.00025479,3]